{"text_format":"1","workbook":"xlsx","n_sheets":3,"sheets":["قائمة مخزون المستودع","قائمة انتقاء المخزون","البحث بالحاوية"],"not_rendered":{"charts":0,"images":0,"macros":1,"external_links":0,"defined_names":8,"comments":0,"pivot_tables":0},"unopened":[],"bounds":{"document_bytes":16777216,"sheet_cells":100000,"rows_first":2000,"rows_last":500,"rows_between":2000,"halvings":0,"cell_chars":16384,"cell_head_chars":4096},"cells_cut":0,"cells_raw":0,"read":"whole","date_system":"1900"}

{"sheet":"قائمة مخزون المستودع","index":0,"n_rows":15,"n_cols":11,"rows_kept":15,"cut":false,"hidden":false,"merged":[]}
[null,"قائمة مخزون المستودع"]
[null,"إجمالي قيمة المخزون:","أصناف المخزون:","عدد الحاويات:","قائمة انتقاء المخزون","البحث بالحاوية"]
[null,{"$f":"SUM(قائمةالمخزون[قيمة المخزون])","v":4649},{"$f":"COUNTA(قائمةالمخزون[الوصف])","v":11},{"$f":"SUMPRODUCT((1/COUNTIF(قائمةالمخزون[رقم الحاوية],قائمةالمخزون[رقم الحاوية]&\"\")))","v":6}]
[null,"SKU","الوصف","رقم الحاوية","الموقع","الوحدة","الكمية","كمية الطلب المسبق","التكلفة","قيمة المخزون","الطلب المسبق"]
[null,"SP7875","الصنف 1","T345",{"$f":"IFERROR(VLOOKUP(قائمةالمخزون[[#This Row],[رقم الحاوية]],البحثبالحاوية[],3,FALSE),\"\")","v":"الصف 2، الخانة 1"},"كل",20,10,30,{"$f":"قائمةالمخزون[[#This Row],[الكمية]]*قائمةالمخزون[[#This Row],[التكلفة]]","v":600},{"$f":"IFERROR(IF(قائمةالمخزون[[#This Row],[الكمية]]<=قائمةالمخزون[[#This Row],[كمية الطلب المسبق]],1,0),0)","v":0}]
[null,"TR87680","الصنف 2","T345",{"$f":"IFERROR(VLOOKUP(قائمةالمخزون[[#This Row],[رقم الحاوية]],البحثبالحاوية[],3,FALSE),\"\")","v":"الصف 2، الخانة 1"},"كل",30,15,40,{"$f":"قائمةالمخزون[[#This Row],[الكمية]]*قائمةالمخزون[[#This Row],[التكلفة]]","v":1200},{"$f":"IFERROR(IF(قائمةالمخزون[[#This Row],[الكمية]]<=قائمةالمخزون[[#This Row],[كمية الطلب المسبق]],1,0),0)","v":0}]
[null,"MK676554","الصنف 3","T5789",{"$f":"IFERROR(VLOOKUP(قائمةالمخزون[[#This Row],[رقم الحاوية]],البحثبالحاوية[],3,FALSE),\"\")","v":"الصف 1، الخانة 1"},"كل",10,5,5,{"$f":"قائمةالمخزون[[#This Row],[الكمية]]*قائمةالمخزون[[#This Row],[التكلفة]]","v":50},{"$f":"IFERROR(IF(قائمةالمخزون[[#This Row],[الكمية]]<=قائمةالمخزون[[#This Row],[كمية الطلب المسبق]],1,0),0)","v":0}]
[null,"YE98767","الصنف 4","T9876",{"$f":"IFERROR(VLOOKUP(قائمةالمخزون[[#This Row],[رقم الحاوية]],البحثبالحاوية[],3,FALSE),\"\")","v":"الصف 3، الخانة 2"},"صندوق (10 قيراط)",40,10,15,{"$f":"قائمةالمخزون[[#This Row],[الكمية]]*قائمةالمخزون[[#This Row],[التكلفة]]","v":600},{"$f":"IFERROR(IF(قائمةالمخزون[[#This Row],[الكمية]]<=قائمةالمخزون[[#This Row],[كمية الطلب المسبق]],1,0),0)","v":0}]
[null,"XR23423","الصنف 5","T098",{"$f":"IFERROR(VLOOKUP(قائمةالمخزون[[#This Row],[رقم الحاوية]],البحثبالحاوية[],3,FALSE),\"\")","v":"الصف 3، الخانة 1"},"كل",12,10,26,{"$f":"قائمةالمخزون[[#This Row],[الكمية]]*قائمةالمخزون[[#This Row],[التكلفة]]","v":312},{"$f":"IFERROR(IF(قائمةالمخزون[[#This Row],[الكمية]]<=قائمةالمخزون[[#This Row],[كمية الطلب المسبق]],1,0),0)","v":0}]
[null,"PW98762","الصنف 6","T345",{"$f":"IFERROR(VLOOKUP(قائمةالمخزون[[#This Row],[رقم الحاوية]],البحثبالحاوية[],3,FALSE),\"\")","v":"الصف 2، الخانة 1"},"كل",7,10,50,{"$f":"قائمةالمخزون[[#This Row],[الكمية]]*قائمةالمخزون[[#This Row],[التكلفة]]","v":350},{"$f":"IFERROR(IF(قائمةالمخزون[[#This Row],[الكمية]]<=قائمةالمخزون[[#This Row],[كمية الطلب المسبق]],1,0),0)","v":1}]
[null,"BM87684","الصنف 7","T349",{"$f":"IFERROR(VLOOKUP(قائمةالمخزون[[#This Row],[رقم الحاوية]],البحثبالحاوية[],3,FALSE),\"\")","v":"الصف 1، الخانة 2"},"كل",10,5,10,{"$f":"قائمةالمخزون[[#This Row],[الكمية]]*قائمةالمخزون[[#This Row],[التكلفة]]","v":100},{"$f":"IFERROR(IF(قائمةالمخزون[[#This Row],[الكمية]]<=قائمةالمخزون[[#This Row],[كمية الطلب المسبق]],1,0),0)","v":0}]
[null,"BH67655","الصنف 8","T5789",{"$f":"IFERROR(VLOOKUP(قائمةالمخزون[[#This Row],[رقم الحاوية]],البحثبالحاوية[],3,FALSE),\"\")","v":"الصف 1، الخانة 1"},"كل",19,10,3,{"$f":"قائمةالمخزون[[#This Row],[الكمية]]*قائمةالمخزون[[#This Row],[التكلفة]]","v":57},{"$f":"IFERROR(IF(قائمةالمخزون[[#This Row],[الكمية]]<=قائمةالمخزون[[#This Row],[كمية الطلب المسبق]],1,0),0)","v":0}]
[null,"WT98768","الصنف 9","T9875",{"$f":"IFERROR(VLOOKUP(قائمةالمخزون[[#This Row],[رقم الحاوية]],البحثبالحاوية[],3,FALSE),\"\")","v":"الصف 2، الخانة 2"},"حزمة (5 قيراط)",20,30,14,{"$f":"قائمةالمخزون[[#This Row],[الكمية]]*قائمةالمخزون[[#This Row],[التكلفة]]","v":280},{"$f":"IFERROR(IF(قائمةالمخزون[[#This Row],[الكمية]]<=قائمةالمخزون[[#This Row],[كمية الطلب المسبق]],1,0),0)","v":1}]
[null,"TS3456","الصنف 10","T349",{"$f":"IFERROR(VLOOKUP(قائمةالمخزون[[#This Row],[رقم الحاوية]],البحثبالحاوية[],3,FALSE),\"\")","v":"الصف 1، الخانة 2"},"كل",15,8,60,{"$f":"قائمةالمخزون[[#This Row],[الكمية]]*قائمةالمخزون[[#This Row],[التكلفة]]","v":900},{"$f":"IFERROR(IF(قائمةالمخزون[[#This Row],[الكمية]]<=قائمةالمخزون[[#This Row],[كمية الطلب المسبق]],1,0),0)","v":0}]
[null,"WDG123","الصنف 11","T349",{"$f":"IFERROR(VLOOKUP(قائمةالمخزون[[#This Row],[رقم الحاوية]],البحثبالحاوية[],3,FALSE),\"\")","v":"الصف 1، الخانة 2"},"كل",25,15,8,{"$f":"قائمةالمخزون[[#This Row],[الكمية]]*قائمةالمخزون[[#This Row],[التكلفة]]","v":200},{"$f":"IFERROR(IF(قائمةالمخزون[[#This Row],[الكمية]]<=قائمةالمخزون[[#This Row],[كمية الطلب المسبق]],1,0),0)","v":0}]

{"sheet":"قائمة انتقاء المخزون","index":1,"n_rows":9,"n_cols":9,"rows_kept":9,"cut":false,"hidden":false,"merged":[]}
[null,"قائمة انتقاء المخزون"]
[null,null,"قائمة المخزون"]
[]
[null,"رقم الطلبية","SKU","الكمية المختارة","الكمية المتوفرة","وصف الصنف","الوحدة","رقم الحاوية","الموقع"]
[null,"TP001-1","SP7875",3,{"$f":"IFERROR(VLOOKUP(قائمةانتقاءالمخزون[SKU],قائمةالمخزون[],6,FALSE),\"\")","v":20},{"$f":"IFERROR(VLOOKUP(قائمةانتقاءالمخزون[SKU],قائمةالمخزون[],2,FALSE),\"\")","v":"الصنف 1"},{"$f":"IFERROR(VLOOKUP(قائمةانتقاءالمخزون[SKU],قائمةالمخزون[],5,FALSE),\"\")","v":"كل"},{"$f":"IFERROR(VLOOKUP(قائمةانتقاءالمخزون[SKU],قائمةالمخزون[],3,FALSE),\"\")","v":"T345"},{"$f":"IFERROR(VLOOKUP(قائمةانتقاءالمخزون[SKU],قائمةالمخزون[],4,FALSE),\"\")","v":"الصف 2، الخانة 1"}]
[null,"TP001-1","YE98767",1,{"$f":"IFERROR(VLOOKUP(قائمةانتقاءالمخزون[SKU],قائمةالمخزون[],6,FALSE),\"\")","v":40},{"$f":"IFERROR(VLOOKUP(قائمةانتقاءالمخزون[SKU],قائمةالمخزون[],2,FALSE),\"\")","v":"الصنف 4"},{"$f":"IFERROR(VLOOKUP(قائمةانتقاءالمخزون[SKU],قائمةالمخزون[],5,FALSE),\"\")","v":"صندوق (10 قيراط)"},{"$f":"IFERROR(VLOOKUP(قائمةانتقاءالمخزون[SKU],قائمةالمخزون[],3,FALSE),\"\")","v":"T9876"},{"$f":"IFERROR(VLOOKUP(قائمةانتقاءالمخزون[SKU],قائمةالمخزون[],4,FALSE),\"\")","v":"الصف 3، الخانة 2"}]
[null,"TP001-1","BM87684",2,{"$f":"IFERROR(VLOOKUP(قائمةانتقاءالمخزون[SKU],قائمةالمخزون[],6,FALSE),\"\")","v":10},{"$f":"IFERROR(VLOOKUP(قائمةانتقاءالمخزون[SKU],قائمةالمخزون[],2,FALSE),\"\")","v":"الصنف 7"},{"$f":"IFERROR(VLOOKUP(قائمةانتقاءالمخزون[SKU],قائمةالمخزون[],5,FALSE),\"\")","v":"كل"},{"$f":"IFERROR(VLOOKUP(قائمةانتقاءالمخزون[SKU],قائمةالمخزون[],3,FALSE),\"\")","v":"T349"},{"$f":"IFERROR(VLOOKUP(قائمةانتقاءالمخزون[SKU],قائمةالمخزون[],4,FALSE),\"\")","v":"الصف 1، الخانة 2"}]
[null,"TP001-1","TS3456",6,{"$f":"IFERROR(VLOOKUP(قائمةانتقاءالمخزون[SKU],قائمةالمخزون[],6,FALSE),\"\")","v":15},{"$f":"IFERROR(VLOOKUP(قائمةانتقاءالمخزون[SKU],قائمةالمخزون[],2,FALSE),\"\")","v":"الصنف 10"},{"$f":"IFERROR(VLOOKUP(قائمةانتقاءالمخزون[SKU],قائمةالمخزون[],5,FALSE),\"\")","v":"كل"},{"$f":"IFERROR(VLOOKUP(قائمةانتقاءالمخزون[SKU],قائمةالمخزون[],3,FALSE),\"\")","v":"T349"},{"$f":"IFERROR(VLOOKUP(قائمةانتقاءالمخزون[SKU],قائمةالمخزون[],4,FALSE),\"\")","v":"الصف 1، الخانة 2"}]
[null,"TP001-1","MK676554",3,{"$f":"IFERROR(VLOOKUP(قائمةانتقاءالمخزون[SKU],قائمةالمخزون[],6,FALSE),\"\")","v":10},{"$f":"IFERROR(VLOOKUP(قائمةانتقاءالمخزون[SKU],قائمةالمخزون[],2,FALSE),\"\")","v":"الصنف 3"},{"$f":"IFERROR(VLOOKUP(قائمةانتقاءالمخزون[SKU],قائمةالمخزون[],5,FALSE),\"\")","v":"كل"},{"$f":"IFERROR(VLOOKUP(قائمةانتقاءالمخزون[SKU],قائمةالمخزون[],3,FALSE),\"\")","v":"T5789"},{"$f":"IFERROR(VLOOKUP(قائمةانتقاءالمخزون[SKU],قائمةالمخزون[],4,FALSE),\"\")","v":"الصف 1، الخانة 1"}]

{"sheet":"البحث بالحاوية","index":2,"n_rows":11,"n_cols":7,"rows_kept":11,"cut":false,"hidden":false,"merged":[]}
[null,"البحث بالحاوية"]
[null,"قائمة المخزون"]
[]
[null,"رقم الحاوية","الوصف","الموقع","العرض","الارتفاع","الطول"]
[null,"T345","حاوية كبيرة","الصف 2، الخانة 1",50,10,10]
[null,"T5789","حاوية صغيرة","الصف 1، الخانة 1",25,5,5]
[null,"T9876","حاوية كبيرة","الصف 3، الخانة 2",50,10,10]
[null,"T098","حاوية متوسطة","الصف 3، الخانة 1",30,7,10]
[null,"T349","حاوية صغيرة","الصف 1، الخانة 2",25,5,5]
[null,"T5789","حاوية كبيرة","الصف 4، الخانة 5",50,10,10]
[null,"T9875","حاوية كبيرة","الصف 2، الخانة 2",50,10,10]